bitfinex-derivatives/quotes_ETHF0:USTF0_20260214
["timestamp","ask_amount","ask_price","bid_price","bid_amount"]
[1771060031784,6.31125668,2085.3,2084.9,0.24334845]
[1771060032187,6.31125668,2085.3,2084.8,5.53484454]
[1771060032686,6.31125668,2085.3,2084.7,5.54335599]
[1771060033089,6.31125668,2085.3,2084.9,0.23994]
[1771060034890,6.31125668,2085.3,2084.7,5.54923253]
[1771060034891,6.31125668,2085.3,2084.7,0.00587654]
[1771060035588,6.31125668,2085.3,2084.4,0.24]
[1771060035785,6.31125668,2085.3,2084.4,5.75380557]
[1771060036585,6.31125668,2085.3,2084.7,5.50569898]
[1771060036983,6.31125668,2085.3,2084.8,0.23996]
[1771060038281,6.31125668,2085.3,2084.5,5.50569898]
[1771060038481,6.31125668,2085.3,2084.4,5.49019754]
[1771060040186,6.31125668,2085.3,2084.6,5.46410604]
[1771060040978,6.31125668,2085.3,2084.5,5.69617556]
[1771060049188,6.31125668,2085.3,2084.5,0.23999]
[1771060049587,6.31125668,2085.2,2084.5,0.23999]
[1771060049789,4.14319917,2085.0,2084.1,5.48050911]
[1771060049989,6.31125668,2084.8,2084.1,5.48050911]
[1771060050785,6.31125668,2085.4,2084.5,5.7129216]
[1771060051790,5.98047301,2085.2,2084.5,5.7129216]
[1771060052196,5.98047301,2085.2,2084.7,5.68986496]
[1771060052491,5.98609461,2085.5,2084.9,5.70017734]
[1771060052891,46.78609461,2085.5,2084.9,5.70017734]
[1771060053293,46.78609461,2085.5,2084.8,0.23996]
[1771060053294,5.98047301,2085.4,2084.8,0.23996]
[1771060053695,5.98047301,2085.4,2084.8,5.9175136]
[1771060057197,5.98047301,2085.4,2084.8,0.23996]
[1771060057593,5.98047301,2085.4,2084.8,5.92079815]
[1771060058500,5.98047301,2085.4,2084.8,0.23996]
[1771060059394,5.98047301,2085.4,2084.5,5.6732037]
[1771060059794,5.98047301,2085.4,2084.8,6.12958148]
[1771060063502,5.98047301,2085.4,2084.8,0.23996]
[1771060065805,5.98047301,2085.4,2084.4,5.8288911]
[1771060066007,5.98047301,2085.4,2084.6,5.8288911]
[1771060068207,5.98047301,2085.4,2084.8,5.77879372]
[1771060072413,6.34616713,2085.7,2085.2,5.75037574]
[1771060073405,40.8,2085.6,2085.2,5.75037574]
[1771060073614,6.34616713,2085.5,2085.2,5.75037574]
[1771060074012,6.34616713,2085.5,2085.1,5.97716797]
[1771060074214,6.34616713,2085.5,2085.1,0.23992]
[1771060075213,6.34616713,2085.5,2084.9,5.73724797]
[1771060076015,6.34616713,2085.5,2085.1,5.99155736]
[1771060076216,40.80429676,2085.6,2085.1,5.99155736]
[1771060076817,47.15046389,2085.6,2085.1,5.99155736]
[1771060079214,40.80429676,2085.6,2085.1,5.99155736]
[1771060079409,6.35046389,2085.6,2085.1,5.99155736]
[1771060082914,6.45574722,2086.0,2085.1,5.99155736]
[1771060083419,6.45574722,2085.9,2085.1,5.99155736]
[1771060083618,40.8,2086.0,2085.1,5.99155736]
[1771060083619,6.45574722,2085.7,2085.1,5.99155736]
[1771060084014,6.46169616,2085.7,2085.1,0.23992]
[1771060086120,6.46169616,2085.7,2084.7,5.96033798]
[1771060087018,6.46169616,2085.7,2084.7,0.23997]
[1771060087019,6.45574722,2085.3,2084.7,0.23997]
[1771060088423,6.45574722,2085.3,2084.7,6.43595564]
[1771060089320,6.45574722,2085.3,2084.7,0.23997]
[1771060091026,6.45574722,2085.3,2084.7,6.35176497]
[1771060091335,2.89303267,2085.7,2084.7,6.35176497]
[1771060091336,6.45574722,2085.6,2084.7,6.35176497]
[1771060091529,6.45574722,2085.5,2084.7,6.35176497]
[1771060095132,5.97124722,2085.5,2085.1,0.23991]
[1771060096531,5.97124722,2085.5,2084.8,6.22214477]
[1771060097331,6.45574722,2085.4,2084.6,6.46212477]
[1771060098731,6.45574722,2085.0,2084.6,0.23998]
[1771060099334,6.45574722,2085.0,2084.4,6.22214477]
[1771060099929,6.45574722,2085.0,2084.6,6.46212477]
[1771060100433,6.45574722,2085.0,2084.6,0.23998]
[1771060100637,6.45574722,2085.0,2084.6,6.46212477]
[1771060101238,6.45574722,2085.2,2084.6,6.46212477]
[1771060102130,6.45574722,2085.2,2084.6,0.23998]
[1771060102540,6.45574722,2085.0,2084.6,0.23998]
[1771060102739,2.87708373,2084.8,2084.2,6.22214477]
[1771060102942,6.45574722,2084.7,2084.2,6.22214477]
[1771060103537,6.45574722,2084.7,2084.1,0.00495002]
[1771060105744,6.45574722,2084.5,2084.0,0.24004]
[1771060105945,6.45574722,2084.5,2083.9,6.22214477]
[1771060106144,6.45574722,2084.5,2083.4,6.46226477]
[1771060106341,6.45574722,2084.3,2083.4,6.46226477]
[1771060106843,6.45574722,2084.3,2083.4,6.4671886]
[1771060107848,2.87708373,2084.5,2083.4,6.4671886]
[1771060107849,2.87708373,2084.0,2083.4,6.4671886]
[1771060108149,6.45574722,2083.9,2083.4,0.24504383]
[1771060109144,5.93513722,2083.8,2083.0,6.22214477]
[1771060109342,6.46100602,2084.0,2083.3,6.22214477]
[1771060110045,8.8e-06,2084.0,2083.7,6.22214477]
[1771060110242,6.45574722,2084.7,2083.9,6.22214477]
[1771060110451,6.45574722,2084.7,2084.0,6.46219477]
[1771060111148,6.46032606,2084.7,2084.0,0.24592297]
[1771060111346,6.46032606,2084.7,2084.0,6.08869085]
[1771060112946,6.46032606,2084.7,2084.0,0.24592297]
[1771060114650,6.46032606,2084.7,2083.4,5.84276788]
[1771060115550,6.46032606,2084.7,2083.5,6.08287788]
[1771060118956,5.8120202,2084.5,2083.5,6.08287788]
[1771060120154,5.8120202,2084.5,2083.5,0.24011]
[1771060121354,6.14323948,2084.4,2083.4,6.25159355]
[1771060121760,6.14323948,2084.4,2083.4,6.49170355]
[1771060121953,6.14323948,2084.2,2083.4,6.49170355]
[1771060125159,5.64182948,2084.2,2083.9,6.24581056]
[1771060125351,3.29335739,2084.2,2083.9,6.24581056]
[1771060125560,3.9341,2084.3,2083.9,6.24581056]
[1771060126260,10.07733948,2084.3,2083.9,6.24581056]
[1771060127463,6.14323948,2084.2,2083.9,6.24581056]
[1771060127654,6.14323948,2084.2,2083.8,0.24007]
[1771060129362,10.07733948,2084.3,2083.8,6.48588056]
[1771060129756,6.14323948,2084.2,2083.8,6.48588056]
[1771060134858,3.40464,2084.3,2083.8,6.48588056]
[1771060135659,2.37733,2084.3,2083.8,6.48588056]
[1771060136569,1.33244,2084.3,2083.8,6.48588056]
[1771060136766,0.79652,2084.3,2083.8,6.48588056]
[1771060136967,6.14323948,2084.5,2083.8,6.48588056]
[1771060137467,6.14781832,2084.7,2083.8,6.48588056]
[1771060141069,1.6324,2084.6,2083.8,6.48588056]
[1771060141270,5.95530363,2084.5,2083.8,6.48588056]
[1771060141565,5.95530363,2084.5,2083.8,0.24007]
[1771060144573,5.95530363,2084.5,2083.8,6.41330326]
[1771060144776,5.95530363,2084.5,2083.8,0.24007]
[1771060148275,5.95530363,2084.5,2083.8,6.41330326]
[1771060149568,5.95530363,2084.5,2083.8,0.24007]
[1771060149871,5.95530363,2084.3,2083.5,6.17323326]
[1771060151270,5.95530363,2084.3,2083.4,0.00578299]
[1771060152674,5.95530363,2084.0,2083.4,0.00578299]
[1771060153471,5.95530363,2084.0,2083.2,6.41336326]
[1771060154075,5.95530363,2084.0,2083.2,0.24013]
[1771060154369,5.95530363,2084.0,2083.2,6.41711867]
[1771060154568,5.95530363,2083.8,2083.2,6.41711867]
[1771060154765,46.75530363,2083.9,2083.2,6.41711867]
[1771060154968,5.95530363,2083.8,2083.2,6.41711867]
[1771060162973,6.38598327,2083.7,2083.2,6.41711867]
[1771060164479,6.38598327,2083.7,2083.2,0.24388541]
[1771060164680,6.39598327,2083.7,2083.2,0.24388541]
[1771060165479,6.39598327,2083.7,2083.2,6.48961093]
[1771060165975,6.38598327,2083.5,2083.1,6.24572552]
[1771060166273,6.38598327,2083.3,2082.8,6.24572552]
[1771060167078,6.38598327,2083.3,2082.9,6.24572552]
[1771060168181,6.38598327,2083.3,2082.8,0.00362506]
[1771060168182,6.38598327,2083.3,2082.8,6.24935058]
[1771060168786,6.38598327,2083.1,2082.8,0.00362506]
[1771060169088,6.38598327,2082.9,2082.3,6.24572552]
[1771060169682,6.38598327,2082.7,2082.3,6.24572552]
[1771060169879,6.38598327,2082.5,2082.1,6.48598552]
[1771060170080,6.39158949,2082.5,2082.1,6.25158275]
[1771060171180,6.39158949,2082.5,2082.1,6.49184275]
[1771060171383,0.00560622,2082.5,2082.1,6.49184275]
[1771060171783,6.22567971,2082.7,2082.1,6.49184275]
[1771060171981,6.22567971,2082.9,2082.1,6.49184275]
[1771060172879,6.23067386,2082.9,2082.1,6.49184275]
[1771060184696,6.23067386,2082.9,2082.5,0.24022]
[1771060184997,6.23067386,2082.9,2082.5,6.41644776]
[1771060186597,6.23067386,2082.9,2082.5,0.24022]
[1771060186992,6.23067386,2082.9,2082.5,6.41644776]
[1771060187593,6.23067386,2082.9,2082.5,0.24022]
[1771060188696,6.23067386,2082.9,2082.5,6.41644776]
[1771060188900,5.81360402,2083.0,2082.5,6.41644776]
[1771060189197,40.8,2083.1,2082.5,6.41644776]
[1771060189794,46.61360402,2083.1,2082.5,6.41644776]
[1771060190097,46.61978659,2083.1,2082.5,6.41644776]
[1771060190391,5.81978659,2083.1,2082.5,6.41644776]
[1771060190596,2.57e-06,2083.1,2082.5,6.41644776]
[1771060190797,5.81360402,2083.6,2083.0,6.17622776]
[1771060190991,5.81360402,2083.6,2082.9,6.41639776]
[1771060191392,40.8,2083.5,2082.9,6.41639776]
[1771060191601,5.81360402,2083.4,2082.9,6.41639776]
[1771060191799,5.81753559,2083.4,2082.9,6.41639776]
[1771060192600,5.33082559,2083.4,2082.9,6.41639776]
[1771060193294,5.33082559,2083.4,2082.9,0.24017]
[1771060194597,5.33082559,2083.4,2082.2,6.17622776]
[1771060196201,5.33082559,2083.4,2082.4,6.41645776]
[1771060197406,5.33082559,2083.4,2082.4,0.24023]
[1771060197605,5.33082559,2083.4,2082.4,6.41645776]
[1771060197808,5.33082559,2083.4,2082.4,0.24023]
[1771060198003,5.33082559,2083.4,2082.4,6.41645776]
[1771060198212,5.81360402,2083.2,2082.4,6.41645776]
[1771060198707,5.81360402,2083.2,2082.4,0.24023]
[1771060199113,5.81360402,2083.2,2082.4,6.41645776]
[1771060205504,6.16594099,2083.3,2082.8,0.24018]
[1771060205809,6.16594099,2083.3,2082.9,6.03319174]
[1771060206005,26.08087256,2083.4,2082.9,6.03319174]
[1771060206503,6.16987256,2083.4,2083.1,6.03319174]
[1771060206702,0.00393157,2083.4,2083.1,6.03319174]
[1771060207908,0.00393157,2083.4,2082.2,5.9104]
[1771060207909,1e-05,2083.7,2083.3,6.03319174]
[1771060208410,6.16594099,2084.1,2083.5,6.03319174]
[1771060208802,6.16968153,2084.1,2083.5,6.03319174]
[1771060209308,40.8,2084.0,2083.5,6.03319174]
[1771060209506,6.16594099,2083.9,2083.5,6.03319174]
[1771060210103,46.96594099,2084.0,2083.5,6.03319174]
[1771060211010,0.00374054,2084.1,2083.7,6.03319174]
[1771060211212,6.16594099,2084.3,2083.9,6.03319174]
[1771060211601,40.8,2084.2,2083.9,6.03319174]
[1771060211806,46.96594099,2084.2,2083.9,6.03319174]
[1771060212314,6.16594099,2084.1,2083.8,0.24007]
[1771060212511,6.16594099,2084.1,2083.7,0.00475474]
[1771060212913,6.16594099,2084.1,2083.7,6.03794648]
[1771060213112,6.16594099,2084.0,2083.3,6.03319174]
[1771060214112,6.16594099,2084.0,2083.3,6.03723064]
[1771060216113,0.00385921,2084.2,2083.3,6.03723064]
[1771060217213,0.00385921,2084.2,2083.9,6.03319174]
[1771060217413,46.96594099,2084.4,2083.9,6.03319174]
[1771060217610,6.16594099,2084.3,2083.9,6.03319174]
[1771060217810,6.160402,2084.3,2083.9,6.03319174]
[1771060218517,6.16508798,2084.3,2083.9,6.03319174]
[1771060219218,6.16508798,2084.3,2083.8,6.27325174]
[1771060219414,0.00468598,2084.3,2083.8,6.27325174]
[1771060219719,6.17062697,2084.3,2083.8,6.27325174]
[1771060220119,0.00468598,2084.3,2083.8,6.27325174]
[1771060221415,6.17062697,2084.3,2083.8,6.27325174]
[1771060223013,6.17062697,2084.3,2083.8,0.24006]
[1771060223220,6.17062697,2084.3,2083.4,6.03319174]
[1771060223618,6.16594099,2084.1,2083.3,6.27736064]
[1771060223819,6.16594099,2084.1,2083.3,0.0040389]
[1771060224324,6.16594099,2084.1,2083.3,6.03723064]
[1771060227019,6.16594099,2084.1,2083.3,0.0040389]
[1771060228625,6.16594099,2084.1,2083.0,6.03319174]
[1771060229225,6.16594099,2083.8,2082.7,6.03319174]
[1771060229529,6.16594099,2083.4,2082.7,6.03772643]
[1771060229722,6.16594099,2083.3,2082.7,6.03772643]
[1771060229922,6.16594099,2083.1,2082.7,6.03772643]
[1771060231227,46.6329314,2083.2,2082.7,6.03772643]
[1771060231426,5.8329314,2083.1,2082.7,6.03772643]
[1771060231830,40.8,2083.2,2082.7,6.03772643]
[1771060232028,5.8329314,2083.1,2082.7,6.03772643]
[1771060233025,5.8329314,2083.1,2082.7,0.00453469]
[1771060233425,5.8329314,2083.1,2082.6,0.24021]
[1771060233426,5.8329314,2083.1,2082.1,5.835207]
[1771060233630,5.8329314,2083.1,2082.3,5.835207]
[1771060233831,5.8329314,2083.1,2082.5,5.835207]
[1771060234033,46.6329314,2083.2,2082.7,5.835207]
[1771060234227,5.8329314,2083.1,2082.7,5.835207]
[1771060234426,5.8329314,2083.1,2082.7,5.83874435]
[1771060234627,40.8,2083.2,2082.7,5.83874435]
[1771060234827,46.6329314,2083.2,2082.7,5.83874435]
[1771060235627,5.8329314,2083.4,2082.8,0.24019]
[1771060235931,5.8329314,2083.7,2082.9,5.835207]
[1771060236427,5.8329314,2083.7,2082.8,0.24019]
[1771060236641,40.8,2083.6,2082.8,0.24019]
[1771060236823,5.8329314,2083.5,2082.8,6.075397]
[1771060237226,40.8,2083.6,2082.8,6.075397]
[1771060237431,46.6329314,2083.6,2082.8,6.075397]
[1771060237632,5.8329314,2083.5,2082.8,6.075397]
[1771060244835,5.8329314,2083.5,2082.8,0.24019]
[1771060245640,5.8329314,2083.5,2082.8,6.45393056]
[1771060250337,5.8329314,2083.5,2082.8,0.24019]
[1771060253240,5.8329314,2083.5,2082.8,6.45393056]
[1771060253643,5.8329314,2083.5,2082.8,0.24019]
[1771060254638,5.8329314,2083.5,2082.8,6.45393056]
[1771060257941,6.12489293,2083.5,2082.8,6.45393056]
[1771060261846,6.12489293,2083.5,2082.7,0.00353735]
[1771060261847,6.04585175,2083.3,2082.7,0.00353735]
[1771060262449,6.04585175,2083.3,2082.7,6.00828814]
[1771060263145,6.04585175,2083.3,2082.7,0.00353735]
[1771060264244,7.47436046,2083.9,2082.9,6.00475079]
[1771060264245,4.02766764,2083.8,2082.9,6.00475079]
[1771060264445,6.04585175,2083.9,2083.1,6.00475079]
[1771060264951,6.04585175,2083.7,2083.1,6.00475079]
[1771060265255,6.04585175,2083.7,2083.1,0.00453932]
[1771060266254,6.04585175,2083.7,2083.1,6.00929011]
[1771060266664,6.04585175,2083.5,2082.5,6.00475079]
[1771060266956,25.95985175,2083.4,2082.7,6.00475079]
[1771060267453,6.04585175,2083.3,2082.7,6.00475079]
[1771060267646,19.914,2083.4,2082.7,6.00475079]
[1771060267647,25.95985175,2083.4,2082.7,6.01007434]
[1771060267952,6.04585175,2083.6,2082.7,6.01007434]
[1771060268349,6.04585175,2083.6,2082.9,6.00475079]
[1771060268855,46.84585175,2083.8,2083.0,0.24017]
[1771060269053,46.84585175,2083.8,2083.1,6.00475079]
[1771060269959,6.04585175,2083.7,2083.3,6.00475079]
[1771060270650,40.8,2083.8,2083.3,6.00475079]
[1771060270855,46.84585175,2083.8,2083.3,6.00475079]
[1771060271258,40.8,2083.8,2083.3,6.00475079]
[1771060271453,6.04585175,2084.0,2083.3,6.00475079]
[1771060271856,46.84585175,2083.9,2083.3,6.00475079]
[1771060272750,6.04585175,2083.8,2083.3,6.00475079]
[1771060273361,6.04585175,2083.8,2083.2,0.24014]
[1771060273563,6.04585175,2083.5,2082.7,0.00532355]
[1771060274367,6.04585175,2083.2,2082.5,0.24022]
[1771060274953,6.04585175,2083.2,2082.2,6.00475079]
[1771060275157,6.04585175,2083.2,2082.0,6.00475079]
[1771060275550,6.04585175,2083.2,2082.0,6.01025129]
[1771060277363,6.04585175,2083.0,2082.0,6.01025129]
[1771060277562,6.04585175,2082.9,2082.0,6.01025129]
[1771060279460,6.04585175,2082.6,2082.0,0.0055005]
[1771060279667,6.04585175,2082.6,2081.5,6.00475079]
[1771060279862,6.04585175,2082.3,2081.5,6.00475079]
[1771060280667,6.05105317,2082.3,2081.5,6.00824017]
[1771060280867,6.04585175,2082.2,2081.5,6.00824017]
[1771060281168,6.04585175,2082.0,2081.3,0.24035]
[1771060281978,6.04585175,2082.0,2080.8,6.00475079]
[1771060282171,6.04585175,2082.0,2080.8,6.00961144]
[1771060282678,6.04585175,2081.7,2080.8,6.00961144]
[1771060282969,6.04585175,2081.5,2080.8,6.00961144]
[1771060283175,6.04585175,2081.5,2080.8,0.00486065]
[1771060283375,6.04585175,2081.5,2080.8,6.00961144]
[1771060283975,6.04585175,2081.5,2080.8,0.00486065]
[1771060284572,50.38022972,2081.6,2080.8,0.00486065]
[1771060284573,6.04585175,2081.2,2080.8,0.00486065]
[1771060284875,6.04585175,2081.3,2080.6,6.00475079]
[1771060285667,6.04585175,2081.3,2080.6,6.00879348]
[1771060287476,6.04585175,2081.3,2080.6,0.00404269]
[1771060287982,6.04585175,2081.3,2080.6,6.00879348]
[1771060290977,6.04585175,2081.3,2080.6,6.24923348]
[1771060294680,5.98777818,2081.4,2080.6,6.24923348]
[1771060296888,5.98777818,2081.3,2080.6,0.24448269]
[1771060297181,5.98777818,2081.3,2080.6,6.33629383]
[1771060300186,5.98777818,2081.3,2080.6,0.00404269]
[1771060300380,6.23422915,2081.2,2080.6,0.00404269]
[1771060302382,6.23422915,2081.2,2080.6,6.07592892]
[1771060302582,6.23422915,2081.2,2080.6,0.00404269]
[1771060302780,6.23422915,2081.2,2080.3,6.07188623]
[1771060302984,6.23422915,2081.2,2080.1,6.31238623]
[1771060303383,6.23422915,2080.9,2080.1,0.2405]
[1771060303784,6.23422915,2080.9,2080.1,6.31238623]
[1771060303985,6.23422915,2080.9,2080.1,6.31764961]
[1771060306594,6.23422915,2081.2,2080.1,6.31764961]
[1771060311396,11.03522915,2081.2,2080.1,0.55570687]
[1771060311592,10.3,2081.3,2080.1,0.55570687]
[1771060311593,6.23422915,2081.0,2080.1,0.55570687]
[1771060311995,6.23422915,2081.2,2080.1,0.55570687]
[1771060313091,6.23422915,2081.2,2080.3,6.07188623]
[1771060314596,6.23422915,2081.2,2080.2,6.31237623]
[1771060316295,6.23422915,2081.1,2080.2,6.31237623]
[1771060317594,6.23422915,2081.1,2080.2,0.24049]
[1771060318294,6.23422915,2081.1,2080.2,6.31237623]
[1771060319297,6.23422915,2080.9,2080.1,0.00526338]
[1771060319494,6.23422915,2080.9,2080.1,6.07714961]
[1771060319697,6.23422915,2080.7,2080.1,6.07714961]
[1771060319895,6.23840637,2080.7,2080.1,6.07714961]
[1771060320104,6.23840637,2080.7,2080.1,6.31763961]
[1771060328602,6.23840637,2080.7,2080.1,0.24575338]
[1771060329111,6.23840637,2080.7,2080.1,6.21214371]
[1771060332006,5.78590472,2080.5,2080.1,0.24575338]
[1771060332209,5.78590472,2080.5,2080.0,5.96639033]
[1771060332807,5.78590472,2080.5,2079.4,6.20697033]
[1771060333204,5.78590472,2080.5,2079.4,6.21144272]
[1771060333805,5.78590472,2080.6,2079.9,5.96639033]
[1771060334908,5.79008194,2080.7,2080.1,5.96639033]
[1771060339814,5.78590472,2080.5,2080.0,0.24051]
[1771060341113,5.78590472,2080.5,2079.9,5.96639033]
[1771060342215,5.78590472,2080.5,2079.9,6.20691033]
[1771060342808,5.78590472,2080.5,2079.9,0.24052]
[1771060343712,5.78590472,2080.5,2079.9,6.20691033]
[1771060345015,5.79008194,2080.7,2079.9,6.20691033]
[1771060345313,5.79008194,2080.7,2080.2,5.96639033]
[1771060345506,5.78590472,2080.6,2080.1,0.2405]
[1771060347109,5.78590472,2080.6,2079.8,5.96639033]
[1771060347309,5.78590472,2080.6,2079.6,0.24055]
[1771060347310,5.78590472,2080.4,2079.7,5.96639033]
[1771060354622,5.78590472,2080.4,2079.8,6.05376661]
[1771060355920,8.67614428,2080.4,2079.8,0.24054]
[1771060356118,5.89220756,2080.3,2079.8,0.24054]
[1771060356324,5.89220756,2080.3,2079.8,6.05376661]
[1771060356824,5.89220756,2080.3,2079.8,0.24054]
[1771060358124,5.89220756,2080.3,2079.8,6.05376661]
[1771060358320,5.89220756,2080.3,2079.8,0.24054]
[1771060360027,5.89220756,2080.3,2079.5,6.10524694]
[1771060360229,6.03251985,2080.2,2079.5,6.10524694]
[1771060360527,6.03251985,2080.2,2079.7,6.10524694]
[1771060361633,6.03251985,2080.6,2079.9,6.10524694]
[1771060362833,6.03251985,2080.6,2080.1,6.10524694]
[1771060363333,6.03251985,2080.6,2080.0,6.34575694]
[1771060367131,6.03669707,2080.7,2080.0,6.34575694]
[1771060368835,6.03669707,2080.7,2080.0,9.23555488]
[1771060369032,6.03669707,2080.7,2080.1,6.10524694]
[1771060376341,6.03669707,2080.7,2080.0,3.13030794]
[1771060376540,6.03669707,2080.7,2080.0,9.23555488]
[1771060377041,6.03669707,2080.7,2080.1,6.10524694]
[1771060379438,0.00417722,2080.7,2080.2,2.88979794]
[1771060379639,0.00417722,2080.7,2080.3,6.10524694]
[1771060379842,6.03669707,2080.7,2080.3,6.10524694]
[1771060380646,0.00417722,2080.7,2080.3,6.10524694]
[1771060380848,23.8646,2080.9,2080.5,6.10524694]
[1771060381043,3.68545111,2080.9,2080.7,5.79307893]
[1771060381245,2.46769111,2080.9,2080.7,5.79307893]
[1771060381439,0.12215111,2080.9,2080.7,5.79307893]
[1771060381643,1.11e-06,2080.9,2080.7,5.79307893]
[1771060381851,46.82310247,2081.1,2080.7,5.79307893]
[1771060382851,46.82792797,2081.1,2080.7,5.79307893]
[1771060383049,6.02310247,2081.4,2080.9,5.79307893]
[1771060383253,6.02310247,2081.7,2080.9,5.79307893]
[1771060384046,6.02310247,2081.5,2081.1,5.79307893]
[1771060384644,46.82310247,2081.6,2081.1,5.79307893]
[1771060384850,40.8,2081.6,2081.1,5.79307893]
[1771060385346,40.8,2081.6,2081.2,2.88979794]
[1771060385548,6.02650944,2081.7,2081.3,5.79307893]
[1771060385549,0.00340697,2081.7,2081.3,5.79307893]
[1771060386243,0.9873,2081.9,2081.3,5.79307893]
[1771060386244,0.9873,2081.9,2081.5,5.79307893]
[1771060386445,41.7873,2081.9,2081.5,5.79307893]
[1771060386951,0.9873,2081.9,2081.5,5.79307893]
[1771060387153,0.43223,2081.9,2081.7,5.79307893]
[1771060387349,0.43223,2081.9,2081.6,0.24033]
[1771060387350,6.45908508,2081.9,2081.6,6.03340893]
[1771060387850,0.43598261,2081.9,2081.6,6.03340893]
[1771060388152,2.61e-06,2081.9,2081.6,6.03340893]
[1771060388544,6.02310247,2082.1,2081.6,6.03340893]
[1771060389142,6.02310247,2082.0,2081.6,6.03340893]
[1771060389347,6.02310247,2081.9,2081.6,6.03340893]
[1771060389550,6.02789821,2081.9,2081.6,6.03340893]
[1771060390450,0.00479574,2081.9,2081.6,6.03340893]
[1771060395144,6.02789821,2081.9,2081.6,6.03340893]
[1771060395452,6.02789821,2081.9,2081.6,0.24033]
[1771060395653,6.02789821,2081.9,2081.6,6.03340893]
[1771060398947,6.02789821,2081.9,2081.6,0.24033]
[1771060399253,6.02789821,2081.9,2081.2,2.88979794]
[1771060399254,6.02310247,2081.7,2081.2,5.79307893]
[1771060399648,6.02310247,2081.7,2081.3,0.24036]
[1771060399951,6.02789821,2081.9,2081.4,5.79307893]
[1771060402154,6.02310247,2081.7,2081.4,5.79307893]
[1771060402355,6.02310247,2081.7,2081.3,6.03343893]
[1771060404052,6.02310247,2081.5,2081.3,0.24036]
[1771060404251,6.02310247,2081.5,2081.1,5.79307893]
[1771060404851,6.02310247,2081.5,2081.3,0.24036]
[1771060405157,6.02310247,2081.5,2080.9,0.00600303]
[1771060405158,6.02310247,2081.5,2080.9,5.79908196]
[1771060405352,6.02310247,2081.5,2081.0,5.79307893]
[1771060406155,46.82310247,2081.6,2081.0,5.79307893]
[1771060407056,46.82310247,2081.6,2081.3,0.24036]
[1771060407251,6.02310247,2081.5,2081.3,0.24036]
[1771060407447,6.02310247,2081.5,2081.1,5.79307893]
[1771060408052,6.02310247,2081.5,2081.3,0.24036]
[1771060408255,6.02310247,2081.5,2081.0,5.79307893]
[1771060409353,6.02310247,2081.1,2080.9,0.00600303]
[1771060409659,5.53515247,2081.1,2080.8,6.03348893]
[1771060409858,6.02310247,2081.3,2080.8,6.03348893]
[1771060410054,43.68979794,2081.6,2080.8,6.03348893]
[1771060410256,6.02310247,2081.5,2080.8,6.03348893]
[1771060410456,6.02310247,2081.5,2080.8,6.03929855]
[1771060414261,6.02310247,2081.5,2080.9,6.25393683]
[1771060414458,5.83401384,2081.3,2080.8,6.50015645]
[1771060414851,5.83401384,2080.9,2080.3,0.24047]
[1771060415162,5.83401384,2080.7,2080.3,0.24047]
[1771060415458,5.83401384,2080.7,2080.3,6.49440683]
[1771060415960,2.88979794,2081.0,2080.3,6.50021855]
[1771060415961,8.72381178,2081.0,2080.3,6.50021855]
[1771060416256,5.83401384,2081.0,2080.3,6.50021855]
[1771060418567,5.83401384,2080.9,2080.3,6.50021855]
[1771060419060,5.83401384,2080.7,2080.3,0.24628172]
[1771060421363,5.83401384,2080.7,2080.3,6.38635847]
[1771060422664,6.19160746,2080.9,2080.3,6.38635847]
[1771060423060,6.19160746,2080.9,2080.3,0.24628172]
[1771060423362,6.19160746,2080.7,2080.3,0.24628172]
[1771060423765,6.19160746,2080.5,2080.1,6.14007675]
[1771060424363,6.19160746,2080.8,2080.4,6.14007675]
[1771060424764,6.19160746,2080.8,2080.4,6.14385743]
[1771060425462,6.19160746,2080.8,2080.4,0.00378068]
[1771060426165,6.19160746,2080.8,2080.3,0.24047]
[1771060426366,6.19160746,2080.6,2079.9,6.14007675]
[1771060427072,6.19160746,2080.6,2080.3,0.24047]
[1771060427266,6.19160746,2080.6,2079.8,6.14007675]
[1771060427459,6.19160746,2080.2,2079.8,6.14007675]
[1771060427865,6.19160746,2080.2,2079.7,0.24055]
[1771060428269,6.19723009,2080.2,2079.7,0.24605808]
[1771060428470,6.19160746,2079.9,2079.4,6.14007675]
[1771060429369,6.19160746,2079.9,2079.2,6.14007675]
[1771060429672,6.19160746,2079.9,2079.3,6.38066675]
[1771060432174,6.19160746,2079.9,2079.3,0.24059]
[1771060432474,6.19160746,2079.9,2079.3,6.38066675]
[1771060433274,46.99160746,2079.9,2079.3,6.38066675]
[1771060434070,6.19160746,2079.8,2079.3,6.38066675]
[1771060439575,6.19160746,2079.8,2079.2,6.14507111]
[1771060439776,6.19160746,2079.8,2079.3,6.38066675]
[1771060440776,6.19160746,2080.0,2079.3,6.38066675]
[1771060440977,46.99160746,2080.1,2079.3,6.38066675]
[1771060441467,6.19043103,2080.0,2079.3,6.38066675]
[1771060442168,6.19043103,2080.0,2079.3,0.24059]
[1771060443578,6.19043103,2079.9,2079.2,0.00499436]
[1771060445077,6.19043103,2079.9,2079.3,0.24059]
[1771060446075,6.19043103,2079.9,2079.2,0.00499436]
[1771060447078,6.19043103,2079.7,2079.3,0.24059]
[1771060447277,6.19043103,2079.7,2079.2,0.00499436]
[1771060447875,6.19043103,2079.7,2078.9,6.42411542]
[1771060448278,6.19043103,2079.4,2078.8,0.24065]
[1771060448577,6.19043103,2079.4,2078.9,6.42411542]
[1771060448783,6.19043103,2079.4,2078.8,6.66476542]
[1771060448977,6.19043103,2079.4,2078.8,6.67056973]
[1771060449381,6.19043103,2079.9,2078.8,6.67056973]
[1771060450485,6.19043103,2079.7,2078.8,6.67056973]
[1771060450684,6.19043103,2079.7,2079.1,6.42411542]
[1771060453589,6.19043103,2079.7,2079.0,0.24063]
[1771060453787,6.19043103,2079.7,2079.0,6.66474542]
[1771060455690,6.19043103,2079.5,2079.0,6.66474542]
[1771060456494,6.19043103,2079.7,2079.0,6.66474542]
[1771060459986,6.19043103,2079.9,2079.0,6.66474542]
[1771060460887,40.8,2080.1,2079.7,6.42411542]
[1771060461093,6.19605366,2080.2,2079.7,6.42411542]
[1771060462395,0.00562263,2080.2,2079.7,6.42411542]
[1771060462596,6.19605366,2080.2,2079.7,6.42411542]
[1771060462891,0.00562263,2080.2,2079.9,6.42411542]
[1771060463096,6.19043103,2080.3,2079.9,6.42411542]
[1771060464090,6.19415158,2080.3,2079.9,6.42411542]
[1771060464491,0.00372055,2080.3,2079.9,6.42411542]
[1771060464792,6.19043103,2080.5,2080.1,6.42411542]
[1771060465702,6.19430326,2080.5,2080.1,6.42411542]
[1771060468301,6.19430326,2080.5,2080.0,6.66462542]
[1771060469601,6.19043103,2080.9,2080.0,6.66462542]
[1771060470104,6.19043103,2080.7,2080.0,6.66462542]
[1771060470601,6.19417464,2080.7,2080.0,6.66462542]
[1771060471601,6.19417464,2080.7,2080.0,0.24051]
[1771060472702,6.19417464,2080.7,2079.7,6.29209311]
[1771060473297,6.11210951,2080.5,2079.6,6.29209311]
[1771060475498,40.8,2080.4,2079.6,6.29209311]